fUST/lending_fUST_20250729
["ID","MTS","AMOUNT","RATE_DAILY","PERIOD"]
[375873626,1753768242535,-460.0,0.00021369,2]
[375873627,1753768242544,-824.3,0.00021623,4]
[375873629,1753768242553,-503.97,0.00021643,2]
[375873632,1753768242563,-460.0,0.00021643,2]
[375873633,1753768242572,-460.0,0.00021643,2]
[375873634,1753768242581,-267.17380269,0.00021643,2]
[375873635,1753768242590,-460.0,0.00021643,2]
[375873637,1753768242599,-520.82,0.00021643,2]
[375873638,1753768242609,-460.0,0.00021643,2]
[375873639,1753768242618,-1134.56,0.00021643,2]
[375873640,1753768242627,-460.0,0.00021643,2]
[375873641,1753768242636,-460.0,0.00021643,2]
[375873642,1753768242646,-1060.85,0.00021643,2]
[375873643,1753768242656,-678.01,0.00021643,2]
[375873644,1753768242665,-369.88,0.00021643,2]
[375873646,1753768242674,-213.54,0.00021643,2]
[375873648,1753768242683,-528.08,0.00021643,2]
[375873649,1753768242693,-511.52,0.00021643,2]
[375873650,1753768242702,-460.0,0.00021643,2]
[375873651,1753768242712,-775.71,0.00021643,2]
[375873652,1753768242722,-460.0,0.00021643,2]
[375873653,1753768242731,-460.0,0.00021643,2]
[375873654,1753768242740,-593.91,0.00021643,2]
[375873655,1753768242749,-460.0,0.00021643,2]
[375873656,1753768242758,-460.0,0.00021643,2]
[375873657,1753768242768,-461.48,0.00021643,2]
[375873658,1753768242777,-460.0,0.00021643,2]
[375873659,1753768242786,-460.0,0.00021643,2]
[375873660,1753768242795,-460.0,0.00021643,2]
[375873661,1753768242804,-460.0,0.00021643,2]
[375873663,1753768242813,-460.0,0.00021643,2]
[375873665,1753768242823,-465.152,0.00021663,2]
[375873666,1753768242832,-3079.01669437,0.000219,2]
[375873667,1753768242842,-460.0,0.00021917,2]
[375873668,1753768242853,-278.08,0.00021917,2]
[375873669,1753768242862,-520.82,0.00021917,2]
[375873670,1753768242871,-460.0,0.00021917,2]
[375873671,1753768242881,-1134.56,0.00021917,2]
[375873672,1753768242891,-460.0,0.00021917,2]
[375873673,1753768242899,-460.0,0.00021917,2]
[375873674,1753768242909,-1060.85,0.00021917,2]
[375873675,1753768242920,-678.01,0.00021917,2]
[375873677,1753768242929,-528.08,0.00021917,2]
[375873679,1753768242939,-511.52,0.00021917,2]
[375873681,1753768242948,-460.0,0.00021917,2]
[375873682,1753768242958,-775.71,0.00021917,2]
[375873683,1753768242967,-460.0,0.00021917,2]
[375873684,1753768242976,-287.74,0.00021917,2]
[375873686,1753768242985,-500.0,0.00021917,2]
[375873688,1753768242995,-507.65964383,0.00021917,2]
[375873690,1753768243004,-460.0,0.00021917,2]
[375873692,1753768243014,-460.0,0.00021917,2]
[375873693,1753768243023,-461.48,0.00021917,2]
[375873695,1753768243032,-460.0,0.00021917,2]
[375873697,1753768243042,-460.0,0.00021917,2]
[375873699,1753768243051,-460.0,0.00021917,2]
[375873701,1753768243061,-460.0,0.00021917,2]
[375873703,1753768243070,-460.0,0.00021917,2]
[375873705,1753768243079,-3000.0,0.00021996,2]
[375873707,1753768243089,-3351.05,0.00022,7]
[375873709,1753768243098,-1042.39,0.00022,7]
[375873711,1753768243107,-11711.13,0.00022,2]
[375873713,1753768243116,-824.3,0.00022053,4]
[375873715,1753768243126,-460.0,0.00022191,2]
[375873717,1753768243135,-520.82,0.00022191,2]
[375873719,1753768243145,-162.32,0.00022191,2]
[375873721,1753768243154,-1134.56,0.00022191,2]
[375873723,1753768243164,-471.22697094,0.00022191,2]
[375873725,1753768243173,-460.0,0.00022191,2]
[375873727,1753768243182,-1060.85,0.00022191,2]
[375873729,1753768243192,-678.01,0.00022191,2]
[375873731,1753768243201,-528.08,0.00022191,2]
[375873734,1753768243212,-511.52,0.00022191,2]
[375873737,1753768243221,-588.46,0.00022191,2]
[375873739,1753768243231,-775.71,0.00022191,2]
[375873742,1753768243240,-460.0,0.00022191,2]
[375873744,1753768243250,-460.0,0.00022191,2]
[375873746,1753768243259,-460.0,0.00022191,2]
[375873748,1753768243268,-461.48,0.00022191,2]
[375873750,1753768243277,-460.0,0.00022191,2]
[375873752,1753768243287,-460.0,0.00022191,2]
[375873754,1753768243296,-496.29,0.00022191,2]
[375873756,1753768243305,-294.82,0.00022191,2]
[375873758,1753768243314,-2159.0,0.00022249,2]
[375873760,1753768243325,-407.0,0.00022249,2]
[375873762,1753768243335,-425.682,0.00022249,2]
[375873764,1753768243344,-969.0,0.00022249,2]
[375873766,1753768243354,-244.0,0.00022408,2]
[375873767,1753768243363,-180.0,0.00022408,2]
[375873768,1753768243373,-434.0,0.00022408,2]
[375873769,1753768243383,-180.0,0.00022408,2]
[375873770,1753768243392,-180.0,0.00022408,2]
[375873771,1753768243402,-720.0,0.00022409,2]
[375873772,1753768243412,-291.2,0.00022465,2]
[375873773,1753768243422,-520.82,0.00022465,2]
[375873774,1753768243431,-1134.56,0.00022465,2]
[375873775,1753768243442,-460.0,0.00022465,2]
[375873776,1753768243451,-1060.85,0.00022465,2]
[375873777,1753768243462,-678.01,0.00022465,2]
[375873778,1753768243472,-528.08,0.00022465,2]
[375873779,1753768243482,-511.52,0.00022465,2]
[375873780,1753768243491,-775.71,0.00022465,2]
[375873781,1753768243501,-460.0,0.00022465,2]
[375873782,1753768243511,-460.0,0.00022465,2]
[375873783,1753768243520,-460.0,0.00022465,2]
[375873784,1753768243530,-461.48,0.00022465,2]
[375873785,1753768243539,-460.0,0.00022465,2]
[375873786,1753768243549,-460.0,0.00022465,2]
[375873787,1753768243558,-824.3,0.00022484,5]
[375873788,1753768243568,-500.0,0.00022594,2]
[375873789,1753768243578,-1732.0,0.00022627,2]
[375873790,1753768243587,-520.82,0.00022739,2]
[375873791,1753768243596,-1134.56,0.00022739,2]
[375873792,1753768243605,-460.0,0.00022739,2]
[375873793,1753768243614,-1060.85,0.00022739,2]
[375873794,1753768243624,-678.01,0.00022739,2]
[375873795,1753768243633,-528.08,0.00022739,2]
[375873796,1753768243642,-511.52,0.00022739,2]
[375873797,1753768243652,-775.71,0.00022739,2]
[375873798,1753768243661,-460.0,0.00022739,2]
[375873799,1753768243670,-460.0,0.00022739,2]
[375873800,1753768243680,-460.0,0.00022739,2]
[375873801,1753768243689,-461.48,0.00022739,2]
[375873802,1753768243698,-460.0,0.00022739,2]
[375873803,1753768243708,-460.0,0.00022739,2]
[375873804,1753768243718,-1833.54389719,0.000228,2]
[375873805,1753768243727,-824.3,0.00022915,5]
[375873806,1753768243736,-444.9,0.00023,7]
[375873807,1753768243746,-1127.79,0.00023,2]
[375873808,1753768243755,-520.82,0.00023013,2]
[375873809,1753768243764,-1134.56,0.00023013,2]
[375873810,1753768243773,-460.0,0.00023013,2]
[375873811,1753768243782,-1060.85,0.00023013,2]
[375873812,1753768243791,-678.01,0.00023013,2]
[375873813,1753768243801,-528.08,0.00023013,2]
[375873814,1753768243810,-511.52,0.00023013,2]
[375873815,1753768243820,-775.71,0.00023013,2]
[375873816,1753768243830,-460.0,0.00023013,2]
[375873817,1753768243840,-460.0,0.00023013,2]
[375873818,1753768243853,-460.0,0.00023013,2]
[375873819,1753768243862,-461.48,0.00023013,2]
[375873820,1753768243871,-460.0,0.00023013,2]
[375873821,1753768243881,-460.0,0.00023013,2]
[375873822,1753768243891,-224.51,0.0002314,2]
[375873823,1753768243900,-150.0,0.00023153,30]
[375873824,1753768243909,-200.0,0.00023191,15]
[375873825,1753768243919,-200.0,0.00023191,15]
[375873826,1753768243932,-200.0,0.00023191,15]
[375873827,1753768243943,-200.0,0.00023191,15]
[375873828,1753768243953,-200.0,0.00023191,15]
[375873829,1753768243962,-200.0,0.00023191,15]
[375873830,1753768243971,-366.0,0.00023191,15]
[375873831,1753768243981,-520.82,0.00023287,2]
[375873832,1753768243992,-1134.56,0.00023287,2]
[375873833,1753768244004,-460.0,0.00023287,2]
[375873834,1753768244014,-678.01,0.00023287,2]
[375873835,1753768244023,-1060.85,0.00023287,2]
[375873836,1753768244033,-528.08,0.00023287,2]
[375873837,1753768244042,-511.52,0.00023287,2]
[375873838,1753768244051,-775.71,0.00023287,2]
[375873839,1753768244061,-460.0,0.00023287,2]
[375873840,1753768244070,-460.0,0.00023287,2]
[375873841,1753768244080,-460.0,0.00023287,2]
[375873842,1753768244089,-461.48,0.00023287,2]
[375873843,1753768244099,-460.0,0.00023287,2]
[375873844,1753768244108,-460.0,0.00023287,2]
[375873845,1753768244117,-824.3,0.00023346,5]
[375873846,1753768244127,-520.82,0.00023561,2]
[375873847,1753768244137,-1134.56,0.00023561,2]
[375873848,1753768244146,-460.0,0.00023561,2]
[375873849,1753768244157,-678.01,0.00023561,2]
[375873850,1753768244166,-1060.85,0.00023561,2]
[375873851,1753768244175,-528.08,0.00023561,2]
[375873852,1753768244186,-511.52,0.00023561,2]
[375873853,1753768244197,-775.71,0.00023561,2]
[375873854,1753768244207,-460.0,0.00023561,2]
[375873855,1753768244216,-460.0,0.00023561,2]
[375873856,1753768244225,-460.0,0.00023561,2]
[375873857,1753768244234,-461.48,0.00023561,2]
[375873858,1753768244243,-460.0,0.00023561,2]
[375873859,1753768244253,-508.64,0.00023648,2]
[375873860,1753768244263,-500.0,0.0002369,2]
[375873861,1753768244273,-508.64,0.00023748,6]
[375873862,1753768244282,-824.3,0.00023777,6]
[375873863,1753768244292,-520.82,0.00023835,2]
[375873864,1753768244301,-1134.56,0.00023835,2]
[375873865,1753768244311,-460.0,0.00023835,2]
[375873866,1753768244320,-678.01,0.00023835,2]
[375873867,1753768244329,-1060.85,0.00023835,2]
[375873868,1753768244339,-528.08,0.00023835,2]
[375873869,1753768244350,-511.52,0.00023835,2]
[375873870,1753768244360,-775.71,0.00023835,2]
[375873871,1753768244370,-460.0,0.00023835,2]
[375873872,1753768244380,-541.59211864,0.00023835,2]
[375873873,1753768244390,-460.0,0.00023835,2]
[375873874,1753768244400,-461.48,0.00023835,2]
[375873875,1753768244410,-460.0,0.00023835,2]
[375873876,1753768244420,-508.64,0.00023848,7]
[375873877,1753768244430,-11711.13,0.000239,2]
[375873878,1753768244439,-508.64,0.00023948,4]
[375873879,1753768244449,-159.057997,0.00023973,2]
[375873880,1753768244459,-508.64,0.00024048,3]
[375873881,1753768244468,-520.82,0.00024109,2]
[375873882,1753768244480,-1134.56,0.00024109,2]
[375873883,1753768244489,-460.0,0.00024109,2]
[375873884,1753768244499,-678.01,0.00024109,2]
[375873885,1753768244509,-1060.85,0.00024109,2]
[375873886,1753768244519,-528.08,0.00024109,2]
[375873887,1753768244530,-511.52,0.00024109,2]
[375873888,1753768244540,-775.71,0.00024109,2]
[375873889,1753768244549,-460.0,0.00024109,2]
[375873890,1753768244560,-460.0,0.00024109,2]
[375873891,1753768244572,-461.48,0.00024109,2]
[375873892,1753768244582,-460.0,0.00024109,2]
[375873893,1753768244595,-508.64,0.00024148,6]
[375873894,1753768244604,-1042.39,0.000242,7]
[375873895,1753768244614,-824.3,0.00024208,6]
[375873896,1753768244623,-508.64,0.00024248,7]
[375873897,1753768244633,-508.66537039,0.00024348,7]
[375873898,1753768244643,-520.82,0.00024383,2]
[375873899,1753768244652,-1134.56,0.00024383,2]
[375873900,1753768244661,-460.0,0.00024383,2]
[375873901,1753768244670,-678.01,0.00024383,2]
[375873902,1753768244679,-1060.85,0.00024383,2]
[375873903,1753768244688,-528.08,0.00024383,2]
[375873904,1753768244697,-511.52,0.00024383,2]
[375873905,1753768244707,-775.71,0.00024383,2]
[375873906,1753768244716,-460.0,0.00024383,2]
[375873907,1753768244725,-198.24,0.00024383,2]
[375873908,1753768244734,-461.48,0.00024383,2]
[375873909,1753768244746,-438.96,0.00024383,2]
[375873910,1753768244756,-250.0,0.00024619,7]
[375873911,1753768244766,-824.3,0.00024639,6]
[375873912,1753768244777,-520.82,0.00024657,2]
[375873913,1753768244786,-1134.56,0.00024657,2]
[375873914,1753768244796,-460.0,0.00024657,2]
[375873915,1753768244805,-678.01,0.00024657,2]
[375873916,1753768244814,-1060.85,0.00024657,2]
[375873917,1753768244824,-528.08,0.00024657,2]
[375873918,1753768244836,-511.52,0.00024657,2]
[375873919,1753768244849,-775.71,0.00024657,2]
[375873920,1753768244859,-460.0,0.00024657,2]
[375873921,1753768244870,-461.48,0.00024657,2]
[375873922,1753768244879,-185.78895639,0.00024658,2]
[375873923,1753768244889,-170.45776717,0.00024767,2]
[375873924,1753768244898,-151.0,0.000248,8]
[375873925,1753768244908,-297.33241286,0.000249,2]
[375873926,1753768245038,-1625.42307402,0.000249,2]
[375873927,1753768245049,-751483.960317,0.000249,2]
[375873928,1753768245058,-160.0,0.000249,2]
[375873929,1753768245068,-520.82,0.00024931,2]
[375873930,1753768245077,-1134.56,0.00024931,2]
[375873931,1753768245086,-460.0,0.00024931,2]
[375873932,1753768245096,-678.01,0.00024931,2]
[375873933,1753768245105,-1060.85,0.00024931,2]
[375873934,1753768245114,-528.08,0.00024931,2]
[375873935,1753768245123,-511.52,0.00024931,2]
[375873936,1753768245133,-775.71,0.00024931,2]
[375873937,1753768245142,-460.0,0.00024931,2]
[375873938,1753768245151,-461.48,0.00024931,2]
[375873939,1753768245161,-3351.05,0.00025,7]
[375873940,1753768245170,-786.38686985,0.00025,7]
[375873941,1753768245179,-12637.12721421,0.00025,7]
[375873942,1753768245189,-824.3,0.00025069,7]
[375873943,1753768245198,-154.311643,0.00025094,6]
[375873944,1753768245209,-150.0,0.00025174,2]
[375873945,1753768245218,-154.311643,0.00025182,2]
[375873946,1753768245227,-520.82,0.00025205,2]
[375873947,1753768245237,-1134.56,0.00025205,2]
[375873948,1753768245246,-573.55672229,0.00025205,2]
[375873949,1753768245256,-678.01,0.00025205,2]
[375873950,1753768245265,-1060.85,0.00025205,2]
[375873951,1753768245275,-528.08,0.00025205,2]
[375873952,1753768245285,-511.52,0.00025205,2]
[375873953,1753768245295,-775.71,0.00025205,2]
[375873954,1753768245304,-287.20059537,0.00025205,2]
[375873955,1753768245314,-461.48,0.00025205,2]
[375873956,1753768245323,-2159.0,0.00025249,2]
[375873957,1753768245333,-407.0,0.00025249,2]
[375873958,1753768245343,-407.0,0.00025249,2]
[375873959,1753768245352,-969.0,0.00025249,2]
[375873960,1753768245361,-2200.0,0.00025302,2]
[375873961,1753768245371,-11711.13,0.000254,2]
[375873962,1753768245381,-200.0,0.00025467,15]
[375873963,1753768245391,-200.0,0.00025467,15]
[375873964,1753768245401,-200.0,0.00025467,15]
[375873965,1753768245411,-200.0,0.00025467,15]
[375873966,1753768245421,-200.0,0.00025467,15]
[375873967,1753768245431,-200.0,0.00025467,15]
[375873968,1753768245440,-200.0,0.00025467,15]
[375873969,1753768245450,-200.0,0.00025467,15]
[375873970,1753768245459,-200.0,0.00025467,15]
[375873971,1753768245469,-394.0,0.00025467,15]
[375873972,1753768245479,-520.87,0.00025479,2]
[375873973,1753768245489,-1134.75485691,0.00025479,2]
[375873975,1753768245498,-678.05,0.00025479,2]
[375873977,1753768245508,-1061.05,0.00025479,2]
[375873979,1753768245517,-528.29,0.00025479,2]
[375873981,1753768245527,-511.52,0.00025479,2]
[375873982,1753768245536,-775.76619371,0.00025479,2]
[375873983,1753768245546,-461.59,0.00025479,2]
[375873984,1753768245555,-151.0,0.000255,19]
[375873985,1753768245564,-824.3,0.000255,7]
[375873986,1753768245573,-205.7268859,0.00025562,2]
[375873987,1753768245583,-165.0839511,0.00025562,2]
[375873988,1753768245592,-181.1283517,0.00025562,2]
[375873990,1753768245601,-178.4386705,0.00025562,2]
[375873991,1753768245611,-160.1053548,0.00025562,2]
[375873992,1753768245620,-178.4386705,0.00025562,2]
[375873993,1753768245629,-160.1053548,0.00025562,2]
[375873994,1753768245638,-178.4386705,0.00025562,2]
[375873995,1753768245648,-354.324302,0.00025571,2]
[375873996,1753768245657,-356505.048717,0.000257,11]
[375873997,1753768245676,-15764.531283,0.000257,11]
[375873998,1753768245686,-15891.85,0.000257,11]
[375873999,1753768245695,-94830.56,0.000257,11]
[375874000,1753768245705,-500.0,0.00025882,2]
[375874002,1753768245715,-200.0,0.0002591,14]
[375874003,1753768245725,-824.3,0.00025931,7]
[375874004,1753768245734,-154.311643,0.00026,30]
[375874005,1753768245744,-2000.0,0.000261,2]
[375874006,1753768245754,-444.9,0.000261,7]
[375874007,1753768245763,-1042.39,0.000261,7]
[375874008,1753768245772,-765.17331404,0.00026137,120]
[375874009,1753768245782,-160.0,0.00026181,5]
[375874010,1753768245791,-154.311643,0.00026223,3]
[375874011,1753768245801,-5000.0,0.000263,10]
[375874012,1753768245810,-5000.0,0.000263,10]
[375874013,1753768245820,-5000.0,0.000263,10]
[375874014,1753768245829,-5000.0,0.000263,10]
[375874015,1753768245840,-526.67226028,0.000263,10]
[375874016,1753768245852,-312.16666667,0.000263,10]
[375874017,1753768245862,-151.0,0.00026301,60]
[375874018,1753768245871,-151.0,0.00026301,60]
[375874019,1753768245881,-151.0,0.00026301,60]
[375874020,1753768245895,-151.0,0.00026301,60]
[375874021,1753768245905,-152.25472172,0.00026301,60]
[375874022,1753768245915,-198.0,0.00026301,60]
[375874023,1753768245924,-151.0,0.00026301,60]
[375874024,1753768245934,-500.0,0.00026301,2]
[375874025,1753768245944,-151.0,0.00026301,2]
[375874026,1753768245954,-151.0,0.00026301,2]
[375874027,1753768245965,-500.0,0.00026301,2]
[375874028,1753768245974,-500.0,0.00026301,2]
[375874029,1753768245984,-151.0,0.00026301,2]
[375874030,1753768245993,-151.0,0.00026301,2]
[375874031,1753768246002,-151.69535298,0.00026301,2]
[375874032,1753768246011,-500.0,0.00026301,2]
[375874033,1753768246025,-154.549968,0.0002636,120]
[375874034,1753768246035,-154.311643,0.00026362,2]
[375874035,1753768246045,-824.3,0.00026362,15]
[375874036,1753768246054,-155.0,0.00026387,2]
[375874037,1753768246064,-151.0,0.00026388,7]
[375874038,1753768246076,-151.0,0.00026388,7]
[375874039,1753768246086,-151.0,0.00026388,7]
[375874040,1753768246096,-151.0,0.00026388,7]
[375874041,1753768246108,-151.0,0.00026418,7]
[375874042,1753768246119,-152.910834,0.00026418,7]
[375874043,1753768246131,-151.600218,0.00026418,7]
[375874044,1753768246142,-151.0,0.00026418,7]
[375874045,1753768246152,-151.0,0.00026418,7]
[375874046,1753768246162,-151.0,0.00026418,7]
[375874047,1753768246172,-151.0,0.00026418,7]
[375874048,1753768246183,-159.58193,0.00026418,7]
[375874049,1753768246194,-151.0,0.00026418,7]
[375874050,1753768246203,-151.0,0.00026418,7]
[375874051,1753768246212,-151.0,0.00026418,7]
[375874052,1753768246222,-151.0,0.00026418,7]
[375874053,1753768246231,-151.0,0.00026418,7]
[375874054,1753768246240,-151.0,0.00026418,7]
[375874055,1753768246248,-151.0,0.00026418,7]
[375874056,1753768246258,-151.0,0.00026418,7]
[375874057,1753768246267,-151.0,0.00026418,7]
[375874059,1753768246276,-176.566368,0.00026418,7]
[375874060,1753768246287,-151.0,0.00026418,7]
[375874061,1753768246296,-151.0,0.00026418,7]
[375874062,1753768246305,-151.0,0.00026418,7]
[375874063,1753768246315,-151.0,0.00026418,7]
[375874064,1753768246325,-151.0,0.00026418,7]
[375874065,1753768246334,-152.095543,0.00026418,7]
[375874066,1753768246343,-577.817424,0.00026418,7]
[375874067,1753768246353,-577.817424,0.00026418,7]
[375874068,1753768246362,-577.817424,0.00026418,7]
[375874069,1753768246371,-577.817424,0.00026418,7]
[375874070,1753768246381,-577.817424,0.00026418,7]
[375874071,1753768246390,-577.817424,0.00026418,7]
[375874072,1753768246400,-577.817424,0.00026418,7]
[375874073,1753768246409,-577.817424,0.00026418,7]
[375874074,1753768246419,-577.817424,0.00026418,7]
[375874075,1753768246428,-577.817424,0.00026418,7]
[375874076,1753768246437,-151.0,0.00026418,7]
[375874077,1753768246446,-577.817424,0.00026418,7]
[375874078,1753768246455,-577.817424,0.00026418,7]
[375874079,1753768246467,-577.817424,0.00026418,7]
[375874080,1753768246480,-577.817424,0.00026418,7]
[375874081,1753768246490,-577.817424,0.00026418,7]
[375874082,1753768246500,-577.817424,0.00026418,7]
[375874083,1753768246509,-577.817424,0.00026418,7]
[375874084,1753768246518,-181.31447814,0.00026418,7]
[375874085,1753768246610,-96.6345,0.00021274,3]
[375874086,1753768246665,-460.0,0.00019178,2]
[375874087,1753768246675,-254.1946728,0.00019817,2]
[375874088,1753768246684,-780.7655,0.00021274,3]
[375874089,1753768246693,-1131.76627734,0.00022149,2]
[375874090,1753768246703,-1131.76627731,0.00023192,2]
[375874091,1753768246714,-1131.76627731,0.00024234,2]
[375874092,1753768246725,-254.1946728,0.00024817,2]
[375874093,1753768246735,-1300.33845921,0.00025479,2]
[375874094,1753768246744,-396.50294586,0.00026418,7]
[375874095,1753768246753,-577.817424,0.00026418,7]
[375874096,1753768246763,-577.817425,0.00026418,7]
[375874097,1753768246772,-151.0,0.00026418,7]
[375874098,1753768246781,-151.0,0.00026418,7]
[375874099,1753768246790,-151.0,0.00026418,7]
[375874100,1753768246799,-151.0,0.00026418,7]
[375874101,1753768246808,-151.0,0.00026418,7]
[375874102,1753768246818,-151.0,0.00026418,7]
[375874103,1753768246827,-152.278939,0.00026418,7]
[375874104,1753768246836,-151.0,0.00026418,7]
[375874105,1753768246848,-151.0,0.00026418,7]
[375874106,1753768246857,-151.0,0.00026418,7]
[375874107,1753768246867,-151.0,0.00026418,7]
[375874108,1753768246876,-257.133657,0.00026418,7]
[375874109,1753768246887,-151.0,0.00026418,7]
[375874110,1753768246896,-151.0,0.00026418,7]
[375874111,1753768246906,-151.0,0.00026418,7]
[375874112,1753768246915,-151.0,0.00026418,7]
[375874113,1753768246926,-169.288236,0.00026418,7]
[375874114,1753768246935,-152.343391,0.00026418,7]
[375874115,1753768246945,-151.612625,0.00026419,7]
[375874116,1753768246954,-1500.0,0.00026419,28]
[375874117,1753768246964,-541.30208364,0.00026419,28]
[375874123,1753768606070,159.057997,0.00013699,2]
[375874128,1753768609324,227.820659,0.00017861,2]
[375874129,1753768639282,1000.0,0.00026,120]
[375874130,1753768640185,1000.0,0.00026,120]
[375874133,1753768711355,1525.66977599,0.00026398,120]
[375874134,1753768817433,23143.08132645,0.00017767,2]
[375874135,1753768817458,1756.91867355,0.00017767,2]
[375874136,1753768865109,1157.3012287,0.00017861,2]
[375874137,1753768865212,1157.3012287,0.00017861,2]
[375874139,1753769047536,150.0,0.0001653,30]
[375874140,1753769139148,-219.57173524,0.00018567,2]
[375874141,1753769139184,-213.27603215,0.00018667,2]
[375874142,1753769139208,-160.89029145,0.00018668,2]
[375874143,1753769139231,-452.70651094,0.00018704,2]
[375874144,1753769139253,-163.98,0.00018758,3]
[375874145,1753769139275,-211.14237789,0.00018758,3]
[375874147,1753769226114,-239.76630053,0.00018604,2]
[375874148,1753769226138,-2593.05287355,0.00018673,2]
[375874149,1753769226164,-902.43489069,0.00018704,2]
[375874150,1753769226187,-280.84762211,0.00018758,3]
[375874151,1753769226208,-240.0,0.00018763,2]
[375874152,1753769226230,-1200.0,0.00018763,2]
[375874153,1753769226250,-300.0,0.00018764,2]
[375874154,1753769226271,-242.0,0.00018764,2]
[375874155,1753769226291,-286.0,0.00018764,2]
[375874156,1753769226312,-1200.0,0.00018764,2]
[375874157,1753769226333,-335.28339934,0.00018766,2]
[375874158,1753769226354,-275.1405721,0.00018766,2]
[375874159,1753769226376,-152.76674054,0.00018766,2]
[375874160,1753769226398,-337.01745285,0.00018766,2]
[375874161,1753769226421,-500.0,0.00018766,2]
[375874162,1753769226444,-500.0,0.00018766,2]
[375874163,1753769226467,-377.78321415,0.00018766,2]
[375874164,1753769226488,-602.4356209,0.00018766,2]
[375874165,1753769226514,-500.0,0.00018766,2]
[375874166,1753769226541,-500.0,0.00018766,2]
[375874167,1753769226564,-500.0,0.00018766,2]
[375874168,1753769226588,-348.44443719,0.00018766,2]
[375874169,1753769234096,-291.51371859,0.00018766,2]
[375874212,1753769437955,-336.35811704,0.00018523,2]
[375874215,1753769437966,-283.11186945,0.00018667,2]
[375874217,1753769437977,-1728.7019157,0.00018668,2]
[375874219,1753769437988,-362.16520876,0.00018673,2]
[375874220,1753769437999,-430.43419397,0.00018766,2]
[375874222,1753769438011,-300.0,0.00018766,2]
[375874224,1753769438023,-244.0,0.00018766,2]
[375874226,1753769438035,-300.0,0.00018766,2]
[375874227,1753769438047,-640.21172308,0.00018766,2]
[375874253,1753769438397,-559.78827692,0.00018766,2]
[375874255,1753769438409,-164.9930876,0.00018767,2]
[375874257,1753769438419,-500.0,0.00018767,2]
[375874259,1753769438429,-500.0,0.00018767,2]
[375874261,1753769438440,-474.95956918,0.00018767,2]
[375874262,1753769438451,-594.46194115,0.00018767,2]
[375874264,1753769438463,-370000.0,0.00018768,2]
[375874266,1753769438474,-42777.4823583,0.00018768,2]
[375874268,1753769438485,-500.0,0.00018773,2]
[375874270,1753769438495,-500.0,0.00018773,2]
[375874272,1753769438506,-500.0,0.00018773,2]
[375874274,1753769438517,-500.0,0.00018773,2]
[375874276,1753769438527,-500.0,0.00018773,2]
[375874279,1753769438552,-500.0,0.00018773,2]
[375874281,1753769438567,-500.0,0.00018773,2]
[375874283,1753769438580,-500.0,0.00018773,2]
[375874285,1753769438593,-179.61176556,0.00018904,3]
[375874287,1753769438606,-200.0,0.00019142,15]
[375874289,1753769438618,-200.0,0.00019142,15]
[375874291,1753769438629,-200.0,0.00019142,15]